bitfinex/quotes_ETHUSD_20260126
["timestamp","ask_amount","ask_price","bid_price","bid_amount"]
[1769447936666,7.91331765,2896.2,2894.3,7.83372821]
[1769447938303,7.91331765,2896.2,2894.3,7.11072821]
[1769447938599,7.05011153,2896.0,2894.4,0.71107282]
[1769447938772,7.05011153,2896.0,2894.3,0.002]
[1769447938972,7.05011153,2896.0,2894.3,7.17749845]
[1769447940100,7.05011153,2895.5,2894.0,0.002]
[1769447940408,0.86352803,2895.1,2893.0,7.20119404]
[1769447940607,0.86352803,2895.1,2892.9,0.02267005]
[1769447940608,7.05011153,2895.7,2893.9,0.02067005]
[1769447940773,7.05011153,2895.7,2894.1,0.02067005]
[1769447940975,7.91335739,2896.1,2894.2,0.02067005]
[1769447941178,8.18673703,2896.0,2894.3,0.72433717]
[1769447941608,8.18673703,2896.0,2893.7,7.96737169]
[1769447941797,8.18673703,2896.0,2894.0,7.22270164]
[1769447942282,7.913401,2895.9,2894.1,0.724]
[1769447942594,7.05011153,2895.9,2894.1,0.74467005]
[1769447942906,7.05011153,2895.9,2894.1,8.00961255]
[1769447943108,7.86878523,2895.9,2894.3,0.02067005]
[1769447944207,7.05011153,2896.3,2894.6,7.28581853]
[1769447944411,7.05011153,2896.3,2894.7,0.8843174]
[1769447944912,7.91316888,2896.7,2894.9,0.02067005]
[1769447945502,7.91316888,2896.7,2894.8,7.30633142]
[1769447945707,1.13653488,2896.6,2894.9,0.83973493]
[1769447945908,0.001,2896.1,2894.9,0.81906488]
[1769447946208,7.05111153,2896.1,2894.9,0.81906488]
[1769447946511,7.05111153,2896.1,2894.6,1.58767179]
[1769447947375,0.001,2896.1,2894.6,8.95503413]
[1769447947580,0.001,2896.1,2894.8,7.34669229]
[1769447947811,7.05111153,2896.1,2894.9,0.724]
[1769447948222,7.05111153,2896.1,2894.6,0.86367179]
[1769447948522,0.70611115,2896.1,2894.9,0.724]
[1769447948722,0.001,2896.1,2894.9,8.11010736]
[1769447949116,0.001,2896.1,2895.0,0.86355785]
[1769447949311,0.001,2896.1,2894.9,8.97367651]
[1769447949700,0.001,2896.1,2894.9,8.11010736]
[1769447949905,0.001,2896.1,2894.9,8.97369256]
[1769447950110,0.001,2896.1,2895.0,0.89943626]
[1769447950500,7.91435086,2896.1,2895.0,0.89943626]
[1769447950829,7.91435086,2896.1,2894.3,0.724]
[1769447951533,7.05111153,2896.1,2894.3,8.16930506]
[1769447951733,7.05111153,2896.1,2894.5,0.02067005]
[1769447952026,7.05111153,2896.1,2894.4,7.44366916]
[1769447952729,7.05111153,2896.1,2894.4,8.30737919]
[1769447952903,0.79143296,2896.0,2894.5,0.90313792]
[1769447954335,0.79143296,2896.0,2894.5,8.35718276]
[1769447954630,0.79143296,2896.0,2894.6,0.02067005]
[1769447954929,0.79143296,2896.0,2894.5,8.35718276]
[1769447955130,7.84154449,2896.0,2894.5,8.35718276]
[1769447955436,0.78425445,2895.9,2894.6,1.69939407]
[1769447955644,0.001,2896.1,2894.8,0.02067005]
[1769447955809,0.001,2896.1,2894.7,7.47471489]
[1769447956344,0.001,2896.1,2894.9,7.47471489]
[1769447956521,0.001,2896.1,2895.1,7.47471489]
[1769447956710,0.001,2896.1,2895.3,0.86346837]
[1769447956903,0.001,2896.1,2895.4,0.50414538]
[1769447957721,0.001,2895.9,2895.2,0.724]
[1769447958041,0.001,2895.9,2895.2,1.58749369]
[1769447958606,0.001,2895.9,2895.2,0.724]
[1769447958806,0.001,2895.9,2895.2,1.58749549]
[1769447960420,7.72232874,2897.3,2895.5,7.31058259]
[1769447960741,7.72232874,2897.1,2895.6,0.73105826]
[1769447960946,7.72232874,2896.9,2895.7,0.724]
[1769447962011,7.72232874,2896.9,2895.4,0.724]
[1769447962430,7.72232874,2896.9,2895.4,1.58743065]
[1769447962630,7.72232874,2896.9,2895.4,0.724]
[1769447962952,0.86295331,2897.1,2895.4,0.724]
[1769447962953,8.58084867,2897.2,2895.4,8.03458259]
[1769447963152,0.85808487,2897.1,2895.6,0.02067005]
[1769447963729,0.85808487,2897.1,2895.8,0.02067005]
[1769447963929,0.85808487,2897.1,2895.6,7.31058259]
[1769447964124,0.85808487,2897.1,2895.6,7.28991254]
[1769447964427,8.58041361,2897.1,2895.6,7.28991254]
[1769447964636,0.85804136,2897.0,2895.7,0.81140409]
[1769447964837,0.85804136,2897.0,2895.7,1.67473427]
[1769447965234,0.85804136,2897.0,2895.7,0.81140409]
[1769447965578,7.72232874,2896.9,2895.6,0.724]
[1769447966758,7.72232874,2896.9,2895.6,1.58737099]
[1769447967140,7.72232874,2896.9,2895.6,0.724]
[1769447967540,7.72232874,2896.9,2895.6,1.58737513]
[1769447967736,7.72232874,2896.9,2895.6,0.724]
[1769447968056,0.85803701,2896.8,2895.6,2.00514732]
[1769447968358,0.85803701,2896.8,2895.6,2.00514849]
[1769447968561,0.14867005,2897.7,2895.7,7.28991254]
[1769447968562,7.72232874,2897.3,2895.7,7.28991254]
[1769447968760,7.72232874,2897.3,2895.8,0.02067005]
[1769447969250,7.72232874,2897.3,2895.9,0.86328947]
[1769447969453,0.001,2897.0,2895.9,8.15320201]
[1769447969863,7.72232874,2896.8,2895.6,0.002]
[1769447970055,6.77627569,2896.9,2895.6,0.002]
[1769447970056,7.72232874,2896.6,2895.6,0.002]
[1769447970763,7.72232874,2896.6,2895.4,0.002]
[1769447971154,7.72232874,2896.4,2895.4,0.002]
[1769447973441,7.72232874,2896.3,2894.6,0.654344]
[1769447973765,7.72232874,2896.1,2894.6,0.654344]
[1769447975464,8.58555991,2896.1,2894.6,0.654344]
[1769447975961,8.58557519,2896.1,2894.6,0.654344]
[1769447976158,7.72232874,2896.1,2894.6,1.51801487]
[1769447978564,7.72232874,2896.1,2894.6,8.80792741]
[1769447978762,0.84945616,2896.0,2894.7,1.22833062]
[1769447979772,0.84945616,2896.0,2894.8,0.86361752]
[1769447979979,0.84945616,2896.0,2894.8,1.58761752]
[1769447981173,8.5717849,2896.0,2894.8,0.724]
[1769447981380,8.5717849,2896.0,2894.8,0.726]
[1769447981578,0.86317225,2896.3,2894.8,0.726]
[1769447981579,8.58050723,2895.9,2894.8,0.726]
[1769447981881,7.72332874,2895.9,2894.8,0.726]
[1769447982179,7.72332874,2895.9,2894.8,1.58961615]
[1769447982478,0.001,2895.9,2894.8,1.58961615]
[1769447984048,0.001,2895.9,2894.9,7.31058259]
[1769447984249,0.001,2895.9,2895.0,0.89001987]
[1769447984550,6.72332874,2896.3,2895.0,0.89001987]
[1769447985181,6.72332874,2896.3,2894.8,1.58961615]
[1769447986906,6.72332874,2896.3,2894.8,8.87952869]
[1769447987108,7.72232874,2896.8,2895.1,7.31058259]
[1769447987267,7.72232874,2896.8,2895.1,7.28991254]
[1769447987467,7.72232874,2896.6,2895.2,0.72899125]
[1769447987896,7.72232874,2896.6,2895.3,7.28991254]
[1769447988099,7.72232874,2896.6,2895.4,0.86343855]
[1769447990000,7.43990493,2897.0,2895.4,8.29794942]
[1769447993492,7.43990493,2897.0,2895.2,4.18274548]
[1769447993493,8.30286915,2897.0,2895.2,0.72899125]
[1769447993826,7.43890493,2896.8,2895.3,1.58746748]
[1769447994191,7.43890493,2896.8,2895.3,0.724]
[1769447994504,8.3029303,2896.8,2895.3,0.724]
[1769447995027,8.3029303,2896.8,2894.8,0.726]
[1769447995396,7.43890493,2896.6,2895.0,0.86353651]
[1769447995595,7.43890493,2896.4,2895.1,0.86352476]
[1769447996629,7.43890493,2896.4,2894.9,3.45432077]
[1769447996630,7.43890493,2896.4,2895.0,7.43451087]
[1769447999002,7.43890493,2896.4,2895.1,8.2980389]
[1769447999608,0.81629049,2896.5,2895.3,7.43451087]
[1769448000407,7.43890493,2896.7,2895.3,7.43451087]
[1769448000609,0.001,2896.8,2895.6,0.02067005]
[1769448000808,0.001,2896.8,2895.7,8.17918092]
[1769448001134,0.001,2896.8,2895.8,0.86331929]
[1769448001300,7.43990493,2896.8,2895.7,0.724]
[1769448001500,0.74399049,2896.7,2895.7,0.724]
[1769448001701,7.43990493,2896.8,2895.7,0.724]
[1769448001897,7.43990493,2896.8,2895.8,0.724]
[1769448002112,0.001,2896.8,2895.8,0.724]
[1769448002330,0.001,2896.8,2895.9,7.43451087]
[1769448002533,0.001,2896.8,2896.0,0.02067005]
[1769448002700,0.001,2896.8,2896.1,8.18002896]
[1769448002900,7.43990493,2896.8,2895.6,0.86337472]
[1769448003134,7.43990493,2896.8,2895.9,0.724]
[1769448004254,7.43990493,2896.8,2895.3,0.86344063]
[1769448004538,8.30294826,2896.8,2895.1,1.58752214]
[1769448004921,7.43890493,2896.4,2895.2,0.50417475]
[1769448005232,7.43890493,2896.4,2895.1,0.724]
[1769448006241,7.43890493,2896.3,2895.1,0.002]
[1769448007122,7.43890493,2896.1,2895.1,0.002]
[1769448007640,7.43890493,2896.1,2894.9,0.002]
[1769448007819,7.43890493,2895.9,2894.9,0.002]
[1769448009214,8.30219887,2895.9,2894.9,0.002]
[1769448011122,7.43890493,2895.9,2894.9,0.002]
[1769448011645,8.30221508,2895.9,2894.9,0.002]
[1769448011846,8.30219514,2895.9,2894.9,0.002]
[1769448012152,7.43890493,2895.7,2894.9,0.002]
[1769448012847,7.43890493,2896.4,2894.9,0.002]
[1769448013227,8.30204898,2896.4,2894.9,0.002]
[1769448013843,8.30204898,2896.4,2894.9,7.43651087]
[1769448014032,7.43890493,2896.2,2895.0,0.74385109]
[1769448014225,7.43890493,2896.2,2894.9,0.002]
[1769448014950,7.43890493,2896.0,2894.9,0.002]
[1769448015152,7.43890493,2895.8,2894.9,0.002]
[1769448018258,7.43890493,2896.2,2894.9,0.002]
[1769448018749,7.65601056,2896.4,2894.9,8.14962205]
[1769448019458,7.65601056,2896.3,2894.9,0.002]
[1769448019631,7.65601056,2896.3,2895.1,0.002]
[1769448020657,0.001,2896.6,2895.1,0.002]
[1769448020858,1.04195665,2896.5,2895.2,0.75691703]
[1769448021157,8.69796721,2896.5,2895.2,0.75691703]
[1769448021543,8.69796721,2896.5,2895.2,1.62041039]
[1769448021860,0.001,2896.6,2895.2,9.18758067]
[1769448022153,0.001,2896.6,2895.3,7.80074058]
[1769448023139,0.001,2896.6,2895.2,0.75691703]
[1769448023140,7.65701056,2896.6,2895.2,0.75691703]
[1769448023379,7.65701056,2896.6,2895.1,0.86551085]
[1769448023802,8.52010582,2896.6,2895.1,0.002]
[1769448024547,0.02067005,2896.5,2895.1,0.002]
[1769448024748,7.65601056,2896.2,2895.1,0.002]
[1769448025046,0.128,2896.3,2894.9,0.002]
[1769448025047,7.65601056,2896.0,2894.9,0.002]
[1769448025263,7.65601056,2895.8,2894.9,0.002]
[1769448026242,0.76766806,2895.9,2894.9,0.002]
[1769448026459,7.65601056,2896.0,2894.9,0.002]
[1769448029751,7.65601056,2896.4,2894.9,0.002]
[1769448030152,8.51915275,2896.4,2894.9,0.002]
[1769448030362,7.65601056,2896.4,2894.9,0.86558755]
[1769448031108,0.001,2896.6,2895.2,7.56717028]
[1769448031260,0.001,2896.6,2895.3,7.56717028]
[1769448032174,0.001,2896.6,2895.3,8.43063693]
[1769448032375,0.001,2896.6,2895.4,0.2335703]
[1769448033119,0.001,2896.2,2895.4,0.2335703]
[1769448033406,0.001,2896.2,2895.5,0.78007406]
[1769448034374,0.001,2896.2,2895.2,1.58749294]
[1769448034658,0.001,2896.2,2895.2,0.724]
[1769448034873,0.001,2896.2,2895.3,8.66418688]
[1769448035085,0.001,2896.2,2895.3,7.80074058]
[1769448035303,0.001,2896.2,2895.2,0.724]
[1769448035607,0.001,2896.2,2895.1,0.002]
[1769448035608,7.65701056,2896.2,2895.1,0.002]
[1769448035821,7.65601056,2896.0,2895.1,0.002]
[1769448037320,0.76570106,2896.1,2895.1,0.002]
[1769448037523,0.001,2896.2,2895.1,0.002]
[1769448038306,7.65601056,2896.1,2895.1,0.002]
[1769448039498,0.001,2896.2,2895.1,0.002]
[1769448040213,0.76670106,2896.2,2895.1,0.002]
[1769448044335,0.001,2896.2,2895.1,0.002]
[1769448045020,0.001,2896.0,2895.1,0.002]
[1769448045220,0.001,2896.0,2895.1,7.56917028]
[1769448047346,0.001,2896.0,2895.1,8.43269596]
[1769448047512,0.001,2896.0,2895.1,7.56917028]
[1769448047712,0.001,2896.0,2895.2,0.86662753]
[1769448048149,7.65701056,2896.0,2895.1,0.002]
[1769448048365,7.65701056,2896.0,2895.1,0.726]
[1769448048735,0.001,2896.0,2895.1,0.726]
[1769448049052,0.001,2896.0,2895.1,1.58952692]
[1769448049254,0.001,2896.0,2895.1,0.726]
[1769448049458,0.001,2896.0,2895.2,0.18231055]
[1769448052445,0.001,2896.0,2895.2,7.92964645]
[1769448053439,0.001,2896.0,2895.2,8.79313992]
[1769448054129,0.001,2896.0,2895.3,7.9809062]
[1769448054950,0.001,2896.6,2895.3,7.9809062]
[1769448055129,0.001,2896.6,2895.5,7.9809062]
[1769448055732,0.001,2896.6,2895.7,7.9809062]
[1769448055922,0.001,2896.6,2895.9,0.2335703]
[1769448057822,0.001,2896.6,2895.2,0.18231055]
[1769448058027,0.001,2896.6,2895.3,1.58743975]
[1769448058248,0.001,2896.6,2895.4,0.2335703]
[1769448058249,7.64908896,2896.5,2895.4,0.2335703]
[1769448060644,7.65008896,2896.6,2895.3,1.58744707]
[1769448060975,7.65008896,2896.6,2895.4,0.2335703]
[1769448061169,7.64908896,2896.4,2895.4,0.41567317]
[1769448061370,7.64908896,2896.4,2895.4,1.27911172]
[1769448061568,7.64908896,2896.4,2895.4,0.41567317]
[1769448062164,7.64908896,2896.4,2895.4,1.27911106]
[1769448062475,0.001,2896.6,2895.4,9.02644696]
[1769448062677,0.001,2896.6,2895.6,0.2335703]
[1769448062978,7.65008896,2896.6,2895.6,0.2335703]
[1769448063676,7.65008896,2896.6,2895.5,0.2335703]
[1769448065074,7.65008896,2896.6,2895.5,8.8443112]
[1769448065281,0.001,2896.6,2895.5,7.9809062]
[1769448065452,7.65008896,2896.6,2895.6,0.81630091]
[1769448066477,7.65008896,2896.6,2895.5,0.2335703]
[1769448066677,7.65008896,2896.6,2895.4,0.18210287]
[1769448066903,7.65008896,2896.6,2895.5,0.724]
[1769448068274,7.65008896,2896.4,2895.5,0.724]
[1769448069780,7.65008896,2896.4,2895.5,1.58740106]
[1769448069980,0.001,2896.4,2895.6,0.17695039]
[1769448072197,0.001,2896.4,2895.6,8.78766314]
[1769448072504,0.001,2896.4,2895.7,7.9809062]
[1769448073086,0.001,2896.4,2895.7,0.2335703]
[1769448076203,7.65008896,2896.4,2895.6,0.17695039]
[1769448076518,7.65008896,2896.4,2895.7,0.17643549]
[1769448078019,0.001,2896.4,2895.7,0.17643549]
[1769448078592,0.001,2896.4,2895.8,8.08303177]
[1769448078791,0.001,2896.4,2895.7,0.17643549]
[1769448079290,0.001,2896.4,2895.7,8.26301872]
[1769448079504,0.001,2896.4,2895.8,0.93599623]
[1769448080730,7.42274256,2896.8,2895.9,0.2335703]
[1769448081026,0.001,2896.8,2895.9,8.32015353]
[1769448081232,7.42274256,2896.8,2895.8,0.93599623]
[1769448081413,7.42174256,2896.6,2895.7,0.002]
[1769448082624,7.42174256,2896.4,2895.7,0.002]
[1769448083730,7.42174256,2896.4,2895.5,0.002]
[1769448083937,7.42174256,2896.4,2895.1,0.002]
[1769448083938,7.44241261,2896.4,2895.1,0.002]
[1769448084849,7.42174256,2896.2,2895.1,0.002]
[1769448085036,7.42174256,2896.0,2895.1,0.002]
[1769448087723,7.42174256,2896.0,2894.9,0.002]
[1769448087920,7.42174256,2895.8,2894.9,0.002]
[1769448089625,8.28508716,2895.8,2894.9,0.002]
[1769448089830,7.42174256,2895.8,2894.9,0.002]
[1769448090022,0.82850348,2895.7,2894.9,0.002]
[1769448090548,8.25023384,2896.1,2894.9,0.002]
[1769448090747,8.25023384,2896.1,2894.9,8.08858323]
[1769448091449,8.25023384,2896.1,2894.9,8.81258323]
[1769448091943,9.1134784,2896.1,2894.9,8.81258323]
[1769448092136,9.1134784,2896.1,2894.9,0.726]
[1769448092454,1.256629,2896.0,2894.9,0.726]
[1769448092654,8.28495428,2896.2,2894.9,8.81258323]
[1769448092827,8.28495428,2896.2,2894.9,0.726]
[1769448093025,8.28495428,2896.2,2895.1,0.002]
[1769448093353,8.30662433,2896.2,2894.9,0.002]
[1769448095131,7.42174256,2895.9,2894.9,0.002]
[1769448095331,7.42174256,2895.7,2894.9,0.002]
[1769448095844,8.28510685,2895.7,2894.9,0.002]
[1769448096445,7.42174256,2895.7,2894.9,0.002]
[1769448097048,8.28509346,2895.7,2894.9,0.002]
[1769448097260,8.28509521,2895.7,2894.9,0.002]
[1769448097439,7.42174256,2895.5,2894.9,0.002]
[1769448098685,7.42174256,2895.5,2894.8,0.002]
[1769448099569,0.82850952,2895.6,2894.8,0.002]
[1769448100471,8.25025208,2895.6,2894.8,0.002]
[1769448104067,9.11365036,2895.6,2894.8,0.002]
[1769448104268,7.42174256,2895.4,2894.8,0.002]
[1769448105193,7.42174256,2895.4,2895.0,0.002]
[1769448105408,7.42174256,2895.4,2894.3,0.002]
[1769448105409,7.42174256,2895.2,2894.3,0.002]
[1769448105576,7.44241261,2895.2,2894.3,0.002]
[1769448105901,7.44241261,2895.0,2894.0,0.002]
[1769448106107,7.42174256,2894.7,2893.7,0.002]
[1769448106264,7.42174256,2894.5,2893.6,0.002]
[1769448106471,8.28545532,2894.5,2893.6,0.002]
[1769448106967,7.42174256,2894.5,2893.6,0.002]
[1769448107163,7.42174256,2894.3,2893.6,0.002]
[1769448107518,0.724,2894.9,2893.7,8.08658323]
[1769448107805,7.42174256,2894.8,2893.6,0.002]
[1769448108096,7.42174256,2894.6,2893.6,0.002]
[1769448109899,7.52576251,2894.1,2892.2,8.02682736]
[1769448110084,7.52576251,2894.1,2892.8,8.02682736]
[1769448110263,8.24976251,2894.3,2892.8,8.8910409]
[1769448110466,0.82704326,2894.2,2892.9,8.91593145]
[1769448111099,8.35280577,2894.2,2892.9,8.91593145]
[1769448111881,8.35280577,2894.2,2892.9,6.16593145]
[1769448112888,7.52576251,2893.8,2892.3,0.86434525]
[1769448113087,7.52576251,2893.8,2892.1,8.03002736]
[1769448113088,7.54643256,2893.5,2892.1,8.03002736]
[1769448113291,7.54643256,2893.5,2892.2,0.8894466]
[1769448113495,7.54643256,2893.5,2892.1,8.03002736]
[1769448113496,7.54643256,2893.5,2892.1,0.0032]
[1769448113709,7.52576251,2893.5,2892.1,8.03002736]
[1769448113884,7.52576251,2893.5,2892.1,0.0032]
[1769448114087,7.52576251,2893.5,2892.1,8.03002736]
[1769448114705,8.3897708,2893.5,2892.1,8.03002736]
[1769448114911,0.83897708,2893.4,2892.2,8.8298301]
[1769448115616,7.52576251,2893.5,2892.2,8.8298301]
[1769448117216,7.52576251,2893.5,2892.4,0.002]
[1769448118725,7.52576251,2893.9,2892.4,8.89315613]
[1769448118892,7.52576251,2893.9,2892.4,8.02882736]
[1769448120530,7.54643256,2893.9,2892.4,0.002]
[1769448120818,7.52576251,2893.5,2892.4,0.002]
[1769448121030,7.52576251,2893.5,2892.5,0.724]
[1769448121317,7.52576251,2893.5,2892.6,0.724]
[1769448121525,7.52576251,2893.5,2892.4,0.002]
[1769448121719,0.8639635,2893.7,2892.4,0.002]
[1769448121720,7.52576251,2893.3,2892.4,0.002]
[1769448123323,0.75257625,2893.4,2892.4,0.002]
[1769448123701,8.27833876,2893.4,2892.5,0.724]
[1769448124428,9.14238356,2893.4,2892.4,0.002]
[1769448124609,7.52576251,2893.2,2892.4,0.002]
[1769448124804,7.52576251,2893.0,2892.4,0.002]
[1769448125609,0.86411632,2893.2,2891.1,8.02682736]
[1769448125610,7.54643256,2892.9,2891.1,8.02682736]
[1769448125795,7.52576251,2892.9,2891.2,8.02682736]
[1769448126018,7.52576251,2892.9,2891.4,8.02682736]
[1769448126223,7.52576251,2893.3,2891.8,8.04749741]
[1769448126425,7.52576251,2893.9,2892.2,8.02682736]
[1769448126607,7.52576251,2893.7,2892.2,8.02682736]
[1769448126805,7.52576251,2893.7,2892.1,0.86440625]
[1769448126806,7.52576251,2893.7,2892.4,8.89115388]
[1769448127033,7.52576251,2894.0,2892.6,8.02682736]
[1769448127428,8.38961986,2894.0,2892.6,8.02682736]
[1769448127731,7.52576251,2893.8,2892.5,0.96151539]
[1769448127932,7.52576251,2893.8,2892.6,0.724]
[1769448128147,7.52576251,2893.9,2892.7,0.724]
[1769448128349,7.52576251,2893.7,2892.7,0.724]
[1769448129150,7.52656251,2893.6,2892.4,0.2335703]
[1769448129328,7.52656251,2893.6,2892.8,0.724]
[1769448129522,0.001,2893.4,2892.8,0.724]
[1769448129959,0.001,2893.4,2892.5,0.86428325]
[1769448130114,0.001,2893.4,2892.6,1.58827047]
[1769448130316,0.001,2893.4,2892.7,0.86424398]
[1769448130947,0.0008,2893.6,2892.7,8.89107134]
[1769448131126,0.0008,2893.6,2892.9,8.02682736]
[1769448131330,0.0008,2893.6,2892.9,8.89099159]
[1769448131556,0.0008,2893.6,2892.9,8.02682736]
[1769448131763,0.0008,2893.6,2892.9,8.89101061]
[1769448132424,7.52576251,2894.2,2892.9,8.89101061]
[1769448132654,7.52576251,2894.2,2893.0,9.12496644]
[1769448132854,0.001,2894.4,2893.4,8.02682736]
[1769448133156,0.001,2894.4,2893.6,8.02682736]
[1769448133378,0.0008,2894.5,2893.7,8.89077317]
[1769448133548,0.0008,2894.5,2893.6,0.86397032]
[1769448133753,0.0008,2894.5,2893.7,0.724]
[1769448134975,7.52656251,2894.5,2892.6,8.02682736]
[1769448135183,7.52656251,2894.5,2892.8,0.86419368]
[1769448135365,7.52576251,2894.3,2893.1,0.724]
[1769448135968,7.52576251,2894.3,2893.1,1.58812265]
[1769448136285,8.39027157,2894.5,2892.5,1.09785319]
[1769448136491,7.52576251,2894.3,2892.7,0.86424312]
[1769448136689,7.52576251,2894.3,2892.9,0.86418393]
[1769448136888,7.52576251,2894.3,2892.8,0.86419318]
[1769448137097,7.52576251,2894.3,2893.1,0.8641194]
[1769448137259,7.52576251,2894.3,2892.7,1.09781477]
[1769448137461,8.39699646,2894.2,2892.8,1.42180881]
[1769448137956,0.87123395,2894.2,2892.9,8.26039766]
[1769448138272,7.52656251,2894.5,2892.9,8.26039766]
[1769448139379,7.52656251,2894.5,2893.0,8.48695382]
[1769448139772,7.52656251,2894.5,2893.1,0.724]
[1769448141004,0.001,2894.3,2893.1,8.34679897]
[1769448141297,0.001,2894.3,2893.2,8.54389435]
[1769448141801,0.001,2894.3,2893.2,9.40798677]
[1769448141965,0.0008,2894.5,2893.6,7.62279897]
[1769448142173,7.89515808,2895.2,2893.8,7.62279897]
[1769448142488,0.78951581,2895.1,2893.9,1.50963693]
[1769448142902,8.68467389,2895.1,2893.9,1.50963693]
[1769448143418,8.68467389,2895.1,2894.0,0.86385625]
[1769448143627,0.0008,2895.4,2894.2,7.62279897]
[1769448144613,0.0008,2895.4,2894.3,0.724]
[1769448145223,0.0008,2895.4,2894.4,7.62279897]
[1769448145722,0.0008,2895.4,2894.5,0.86370703]
[1769448145926,0.0008,2895.4,2894.6,8.32142152]
[1769448146092,0.0008,2895.4,2894.6,0.69862255]
[1769448146493,0.0008,2895.4,2894.6,8.32142152]
[1769448146722,0.001,2896.0,2894.7,7.85636927]
[1769448147025,0.001,2896.0,2895.1,7.62279897]
[1769448147196,0.001,2896.0,2895.2,9.1324359]
[1769448147621,0.001,2896.0,2895.3,0.86346837]
[1769448147921,0.001,2896.0,2895.2,9.9959332]
[1769448148124,0.001,2896.0,2895.2,1.50963693]
[1769448148324,0.001,2896.0,2894.7,0.2335703]
[1769448148524,0.001,2896.0,2895.3,0.724]
[1769448149395,0.001,2896.2,2895.3,0.724]
[1769448149598,0.001,2896.2,2895.4,0.86343855]
[1769448149901,0.001,2896.2,2895.4,8.48623752]
[1769448150102,0.001,2896.8,2895.5,8.88919904]
[1769448150295,7.89615808,2896.8,2895.5,1.26640007]
[1769448150527,7.89615808,2896.8,2895.6,0.724]
[1769448151197,8.75919352,2896.8,2894.8,7.62279897]
[1769448151398,8.75919352,2896.8,2895.0,0.86354296]
[1769448151633,7.89615808,2896.8,2895.0,0.86355785]
[1769448151932,7.89615808,2896.8,2895.0,8.48635682]
[1769448152128,0.001,2896.8,2895.6,7.62279897]
[1769448152332,0.001,2896.8,2895.7,0.724]
[1769448152718,0.001,2896.8,2895.7,8.36746902]
[1769448153512,0.001,2896.8,2895.8,7.85636927]
[1769448153822,7.89515808,2897.8,2896.3,7.64346902]
[1769448154137,7.89515808,2897.8,2896.5,7.62279897]
[1769448154307,7.89515808,2898.6,2896.6,0.9575703]
[1769448154506,7.89515808,2898.6,2896.6,8.58036927]
[1769448154709,7.89515808,2898.6,2897.0,0.02067005]
[1769448154905,7.89515808,2898.4,2897.0,0.69862255]
[1769448155311,0.78951581,2898.5,2897.1,7.85636927]
[1769448155544,7.89515808,2898.8,2897.3,0.02067005]
[1769448155705,7.89515808,2899.4,2897.4,9.20964151]
[1769448155899,7.89515808,2899.4,2897.5,7.85636927]
[1769448156335,7.89515808,2899.4,2897.7,7.62279897]
[1769448156705,5.14515808,2899.4,2897.7,7.62279897]
[1769448156905,8.49589597,2899.3,2897.8,0.7643469]
[1769448157434,8.49589597,2899.3,2897.9,0.2335703]
[1769448157626,8.49589597,2899.3,2898.0,0.8626639]
[1769448157850,0.60073789,2899.3,2898.1,7.87703932]
[1769448158153,7.89515808,2899.6,2898.2,0.724]
[1769448158537,7.89515808,2899.6,2898.3,0.2335703]
[1769448159848,7.89515808,2899.6,2898.4,0.723]
[1769448160948,7.89515808,2899.6,2898.1,0.2335703]
[1769448161140,7.89515808,2899.6,2898.5,0.723]
[1769448161453,7.89515808,2899.4,2898.5,0.723]
[1769448161656,7.89515808,2899.4,2898.0,8.48544234]
[1769448161854,8.75741257,2899.4,2897.8,0.7643469]
[1769448162166,7.89515808,2899.4,2898.1,0.723]
[1769448162450,0.86847739,2899.3,2898.2,0.2335703]
[1769448162652,7.89615808,2899.7,2898.2,0.2335703]
[1769448162839,7.89615808,2899.7,2898.2,7.85636927]
[1769448163228,7.89615808,2899.7,2898.3,0.02067005]
[1769448163440,0.001,2899.7,2898.5,7.62279897]
[1769448164056,7.89615808,2899.7,2898.1,0.52754661]
[1769448164359,7.89515808,2899.5,2898.2,0.723]
[1769448164537,7.89515808,2899.5,2898.3,0.723]
[1769448165949,8.75737869,2899.5,2898.3,0.723]
[1769448166279,8.75737869,2899.5,2897.8,1.62705515]
[1769448166440,8.75737869,2899.5,2897.9,1.58568958]
[1769448166643,7.89515808,2899.3,2898.1,0.86262621]
[1769448167056,7.89515808,2899.3,2898.2,0.723]
[1769448168674,7.89515808,2899.3,2898.3,0.723]
[1769448168875,7.89515808,2899.3,2898.4,0.723]
[1769448169084,8.75744141,2899.3,2898.4,0.723]
[1769448169257,9.37633138,2899.2,2897.9,0.94238541]
[1769448169583,9.37633138,2899.2,2898.0,0.723]
[1769448170079,8.37062884,2899.0,2898.0,0.723]
[1769448170277,1.00570254,2899.2,2898.0,1.58566199]
[1769448170465,10.23865873,2899.2,2897.6,0.86276392]
[1769448170659,10.23865873,2899.2,2897.7,0.723]
[1769448170861,8.37062884,2899.0,2897.7,1.58574966]
[1769448171077,8.37062884,2899.0,2897.7,0.723]
[1769448171575,8.37062884,2899.0,2897.6,0.86276073]
[1769448171781,8.37062884,2899.0,2897.7,0.723]
[1769448173184,8.37062884,2899.0,2897.7,8.58032998]
[1769448173385,0.93944947,2898.9,2897.7,9.52463991]
[1769448173594,0.93944947,2898.9,2897.7,10.38738762]
[1769448173969,0.93944947,2898.9,2897.7,9.52463991]
[1769448174374,0.93944947,2898.9,2897.7,10.3873864]
[1769448174571,0.93944947,2898.9,2897.7,1.58574649]
[1769448174766,0.93944947,2898.9,2897.7,0.723]
[1769448175165,0.93944947,2898.9,2897.6,0.86276121]
[1769448175490,9.31007831,2898.9,2897.7,0.723]
[1769448178466,10.17247845,2898.9,2897.8,0.723]
[1769448178667,9.38787669,2898.8,2897.9,0.002]
[1769448179679,9.38787669,2898.8,2898.0,0.723]
[1769448182077,9.38787669,2898.8,2897.9,0.002]
[1769448182287,9.38787669,2898.8,2897.6,0.002]
[1769448182288,8.37062884,2898.6,2897.6,0.002]
[1769448182505,8.37062884,2898.4,2897.6,0.002]
[1769448182695,8.37062884,2898.2,2897.6,0.002]
[1769448182901,8.37062884,2898.2,2896.8,0.002]
[1769448183108,8.37062884,2898.2,2896.9,0.723]
[1769448183411,8.37062884,2898.2,2896.9,9.44330779]
[1769448183606,0.92331439,2898.3,2897.0,7.85732998]